fUST/lending_fUST_20240707
["ID","MTS","AMOUNT","RATE_DAILY","PERIOD"]
[331373123,1720296645781,-151.0,0.0004,14]
[331373124,1720296645791,-151.0,0.0004,14]
[331373125,1720296645800,-151.0,0.0004,14]
[331373126,1720296645811,-151.0,0.0004,14]
[331373127,1720296645820,-277.636,0.0004,14]
[331373128,1720296645829,-151.0,0.0004,14]
[331373129,1720296645839,-151.0,0.0004,14]
[331373130,1720296645849,-151.0,0.0004,14]
[331373131,1720296645859,-151.0,0.0004,14]
[331373132,1720296645874,-151.0,0.0004,14]
[331373133,1720296645883,-151.0,0.0004,14]
[331373134,1720296645893,-202.873245,0.0004,14]
[331373135,1720296645902,-241.792987,0.0004,14]
[331373136,1720296645912,-151.0,0.0004,14]
[331373137,1720296645921,-241.792987,0.0004,14]
[331373138,1720296645932,-151.0,0.0004,14]
[331373139,1720296645946,-241.792987,0.0004,14]
[331373140,1720296645956,-151.0,0.0004,14]
[331373141,1720296645971,-241.792987,0.0004,14]
[331373142,1720296645981,-151.0,0.0004,14]
[331373143,1720296645992,-241.792987,0.0004,14]
[331373144,1720296646002,-151.0,0.0004,14]
[331373145,1720296646012,-241.792987,0.0004,14]
[331373146,1720296646021,-151.0,0.0004,14]
[331373147,1720296646032,-241.792987,0.0004,14]
[331373148,1720296646042,-151.0,0.0004,14]
[331373149,1720296646051,-241.792987,0.0004,14]
[331373150,1720296646061,-151.0,0.0004,14]
[331373151,1720296646071,-241.792987,0.0004,14]
[331373152,1720296646081,-151.0,0.0004,14]
[331373153,1720296646091,-241.792987,0.0004,14]
[331373154,1720296646100,-241.792987,0.0004,14]
[331373155,1720296646110,-151.0,0.0004,14]
[331373156,1720296646119,-241.792987,0.0004,14]
[331373157,1720296646129,-151.0,0.0004,14]
[331373158,1720296646138,-241.792987,0.0004,14]
[331373159,1720296646147,-151.0,0.0004,14]
[331373160,1720296646157,-241.792987,0.0004,14]
[331373161,1720296646167,-151.0,0.0004,14]
[331373162,1720296646177,-241.792987,0.0004,14]
[331373163,1720296646186,-151.0,0.0004,14]
[331373164,1720296646196,-241.792987,0.0004,14]
[331373165,1720296646206,-179.872467,0.0004,14]
[331373166,1720296646215,-2392.869866,0.0004,14]
[331373167,1720296646224,-2392.869866,0.0004,14]
[331373168,1720296646234,-2392.869866,0.0004,14]
[331373169,1720296646244,-2392.869866,0.0004,14]
[331373172,1720296646253,-2392.869866,0.0004,14]
[331373174,1720296646263,-2392.869866,0.0004,14]
[331373176,1720296646272,-2392.869866,0.0004,14]
[331373178,1720296646281,-2392.869866,0.0004,14]
[331373180,1720296646291,-2392.869866,0.0004,14]
[331373182,1720296646300,-2392.869866,0.0004,14]
[331373184,1720296646310,-190.186449,0.0004,14]
[331373185,1720296646320,-2392.869866,0.0004,14]
[331373187,1720296646329,-190.186449,0.0004,14]
[331373189,1720296646338,-2392.869866,0.0004,14]
[331373191,1720296646348,-190.186449,0.0004,14]
[331373193,1720296646358,-2392.869866,0.0004,14]
[331373195,1720296646367,-190.186449,0.0004,14]
[331373197,1720296646377,-2392.869866,0.0004,14]
[331373199,1720296646387,-190.186449,0.0004,14]
[331373201,1720296646396,-2392.869866,0.0004,14]
[331373203,1720296646406,-190.186449,0.0004,14]
[331373205,1720296646415,-2392.869858,0.0004,14]
[331373207,1720296646425,-190.186449,0.0004,14]
[331373208,1720296646434,-190.186449,0.0004,14]
[331373210,1720296646444,-190.186449,0.0004,14]
[331373212,1720296646453,-190.186449,0.0004,14]
[331373214,1720296646462,-190.186449,0.0004,14]
[331373216,1720296646471,-190.186449,0.0004,14]
[331373217,1720296646481,-190.186449,0.0004,14]
[331373219,1720296646490,-190.186449,0.0004,14]
[331373221,1720296646500,-190.186449,0.0004,14]
[331373223,1720296646510,-190.186453,0.0004,14]
[331373225,1720296646518,-963.925426,0.0004,14]
[331373226,1720296646528,-963.925426,0.0004,14]
[331373227,1720296646538,-963.925426,0.0004,14]
[331373228,1720296646548,-963.925426,0.0004,14]
[331373229,1720296646557,-963.925426,0.0004,14]
[331373230,1720296646566,-963.925426,0.0004,14]
[331373231,1720296646576,-963.925426,0.0004,14]
[331373232,1720296646585,-963.925426,0.0004,14]
[331373233,1720296646595,-963.925426,0.0004,14]
[331373234,1720296646604,-189.788651,0.0004,14]
[331373235,1720296646613,-963.925426,0.0004,14]
[331373236,1720296646622,-963.925426,0.0004,14]
[331373237,1720296646632,-963.925426,0.0004,14]
[331373238,1720296646641,-963.925426,0.0004,14]
[331373240,1720296646650,-963.925426,0.0004,14]
[331373242,1720296646659,-963.925426,0.0004,14]
[331373244,1720296646668,-963.925426,0.0004,14]
[331373246,1720296646678,-630.972189,0.0004,14]
[331373248,1720296646687,-630.972189,0.0004,14]
[331373250,1720296646696,-630.972189,0.0004,14]
[331373252,1720296646705,-630.972189,0.0004,14]
[331373254,1720296646715,-630.972189,0.0004,14]
[331373256,1720296646725,-630.972189,0.0004,14]
[331373258,1720296646733,-630.972189,0.0004,14]
[331373260,1720296646743,-630.972189,0.0004,14]
[331373261,1720296646752,-630.972189,0.0004,14]
[331373263,1720296646761,-630.972189,0.0004,14]
[331373265,1720296646771,-630.972189,0.0004,14]
[331373267,1720296646780,-630.972189,0.0004,14]
[331373269,1720296646790,-630.972189,0.0004,14]
[331373271,1720296646800,-630.972189,0.0004,14]
[331373272,1720296646810,-630.972189,0.0004,14]
[331373273,1720296646819,-630.972197,0.0004,14]
[331373274,1720296646828,-173.808457,0.0004,14]
[331373275,1720296646837,-173.808457,0.0004,14]
[331373276,1720296646847,-173.808457,0.0004,14]
[331373277,1720296646860,-173.808457,0.0004,14]
[331373278,1720296646869,-173.808457,0.0004,14]
[331373279,1720296646879,-173.808457,0.0004,14]
[331373280,1720296646888,-173.808457,0.0004,14]
[331373281,1720296646897,-173.808457,0.0004,14]
[331373282,1720296646909,-173.808457,0.0004,14]
[331373283,1720296646918,-173.808457,0.0004,14]
[331373284,1720296646927,-173.808457,0.0004,14]
[331373285,1720296646940,-173.808457,0.0004,14]
[331373286,1720296646950,-173.808457,0.0004,14]
[331373287,1720296646959,-173.808459,0.0004,14]
[331373288,1720296646970,-194.365924,0.0004,14]
[331373289,1720296646980,-194.365924,0.0004,14]
[331373290,1720296646989,-194.365924,0.0004,14]
[331373291,1720296646999,-194.365924,0.0004,14]
[331373292,1720296647008,-194.365924,0.0004,14]
[331373293,1720296647018,-194.365924,0.0004,14]
[331373294,1720296647027,-194.365924,0.0004,14]
[331373295,1720296647036,-194.365924,0.0004,14]
[331373297,1720296647046,-194.365924,0.0004,14]
[331373299,1720296647055,-194.365924,0.0004,14]
[331373300,1720296647064,-194.365924,0.0004,14]
[331373301,1720296647074,-194.365924,0.0004,14]
[331373302,1720296647083,-194.365924,0.0004,14]
[331373303,1720296647092,-194.365927,0.0004,14]
[331373304,1720296647102,-338.475422,0.0004,14]
[331373305,1720296647111,-338.475422,0.0004,14]
[331373306,1720296647120,-338.475422,0.0004,14]
[331373307,1720296647130,-338.475422,0.0004,14]
[331373308,1720296647139,-338.475422,0.0004,14]
[331373309,1720296647149,-338.475422,0.0004,14]
[331373310,1720296647159,-338.475422,0.0004,14]
[331373311,1720296647168,-338.475422,0.0004,14]
[331373312,1720296647177,-338.475422,0.0004,14]
[331373313,1720296647186,-1124.935949,0.0004,14]
[331373314,1720296647195,-338.475422,0.0004,14]
[331373315,1720296647204,-1124.935949,0.0004,14]
[331373316,1720296647214,-338.475422,0.0004,14]
[331373317,1720296647224,-1124.935949,0.0004,14]
[331373318,1720296647234,-338.475422,0.0004,14]
[331373319,1720296647243,-1124.935949,0.0004,14]
[331373320,1720296647253,-338.475422,0.0004,14]
[331373321,1720296647262,-1124.935949,0.0004,14]
[331373322,1720296647271,-338.475426,0.0004,14]
[331373323,1720296647281,-1124.935949,0.0004,14]
[331373324,1720296647290,-1124.935949,0.0004,14]
[331373325,1720296647300,-1124.935949,0.0004,14]
[331373326,1720296647309,-1124.935949,0.0004,14]
[331373327,1720296647319,-1124.935949,0.0004,14]
[331373328,1720296647328,-1124.935949,0.0004,14]
[331373329,1720296647337,-1124.935949,0.0004,14]
[331373330,1720296647346,-1124.935949,0.0004,14]
[331373331,1720296647356,-1124.935958,0.0004,14]
[331373332,1720296647366,-901.250261,0.0004,14]
[331373333,1720296647375,-901.250261,0.0004,14]
[331373334,1720296647385,-901.250261,0.0004,14]
[331373335,1720296647394,-901.250261,0.0004,14]
[331373336,1720296647404,-901.250261,0.0004,14]
[331373337,1720296647413,-901.250261,0.0004,14]
[331373338,1720296647423,-901.250261,0.0004,14]
[331373339,1720296647432,-901.250261,0.0004,14]
[331373340,1720296647442,-901.250261,0.0004,14]
[331373341,1720296647452,-901.250261,0.0004,14]
[331373342,1720296647461,-901.250261,0.0004,14]
[331373343,1720296647471,-901.250261,0.0004,14]
[331373344,1720296647481,-901.250261,0.0004,14]
[331373345,1720296647490,-901.25027,0.0004,14]
[331373346,1720296647500,-227.549765,0.0004,14]
[331373347,1720296647510,-227.549765,0.0004,14]
[331373348,1720296647520,-227.549765,0.0004,14]
[331373349,1720296647529,-227.549765,0.0004,14]
[331373350,1720296647539,-227.549765,0.0004,14]
[331373351,1720296647548,-227.549765,0.0004,14]
[331373352,1720296647558,-227.549765,0.0004,14]
[331373353,1720296647569,-227.549765,0.0004,14]
[331373354,1720296647579,-227.549765,0.0004,14]
[331373355,1720296647588,-227.549762,0.0004,14]
[331373356,1720296647598,-5359.908603,0.0004,14]
[331373357,1720296647608,-5359.908603,0.0004,14]
[331373358,1720296647618,-5359.908603,0.0004,14]
[331373359,1720296647749,-5359.908603,0.0004,14]
[331373360,1720296647759,-5359.908603,0.0004,14]
[331373361,1720296647769,-5359.908603,0.0004,14]
[331373362,1720296647779,-5359.908603,0.0004,14]
[331373363,1720296647788,-5359.908603,0.0004,14]
[331373364,1720296647798,-1181.173549,0.0004,14]
[331373365,1720296647807,-5359.908603,0.0004,14]
[331373366,1720296647818,-1181.173549,0.0004,14]
[331373367,1720296647828,-5359.908601,0.0004,14]
[331373368,1720296647837,-1181.173549,0.0004,14]
[331373369,1720296647846,-1181.173549,0.0004,14]
[331373370,1720296647858,-1181.173549,0.0004,14]
[331373371,1720296647868,-1181.173549,0.0004,14]
[331373372,1720296647878,-1181.173549,0.0004,14]
[331373373,1720296647888,-1181.173549,0.0004,14]
[331373374,1720296647899,-1181.173549,0.0004,14]
[331373375,1720296647908,-1181.173548,0.0004,14]
[331373376,1720296647918,-151.0,0.0004,14]
[331373377,1720296647927,-151.0,0.0004,14]
[331373378,1720296647939,-151.0,0.0004,14]
[331373379,1720296647948,-151.0,0.0004,14]
[331373380,1720296647958,-151.0,0.0004,14]
[331373381,1720296647969,-159.005569,0.0004,14]
[331373382,1720296647978,-151.0,0.0004,14]
[331373383,1720296647987,-151.0,0.0004,14]
[331373384,1720296647997,-151.0,0.0004,14]
[331373385,1720296648007,-151.0,0.0004,14]
[331373386,1720296648016,-255.411475,0.0004,14]
[331373387,1720296648025,-1157.381689,0.0004,14]
[331373388,1720296648035,-1157.381689,0.0004,14]
[331373389,1720296648044,-1157.381689,0.0004,14]
[331373390,1720296648053,-1157.381689,0.0004,14]
[331373391,1720296648062,-1157.381689,0.0004,14]
[331373392,1720296648071,-1157.381689,0.0004,14]
[331373393,1720296648081,-1157.381689,0.0004,14]
[331373394,1720296648090,-1157.381689,0.0004,14]
[331373395,1720296648099,-1157.381689,0.0004,14]
[331373396,1720296648109,-1157.381687,0.0004,14]
[331373398,1720296648119,-151.0,0.0004,14]
[331373400,1720296648128,-151.0,0.0004,14]
[331373401,1720296648137,-151.0,0.0004,14]
[331373402,1720296648147,-151.0,0.0004,14]
[331373403,1720296648156,-151.0,0.0004,14]
[331373404,1720296648165,-151.03158,0.0004,120]
[331373405,1720296648174,-151.0,0.0004,14]
[331373406,1720296648184,-151.0,0.0004,14]
[331373407,1720296648193,-151.0,0.0004,14]
[331373408,1720296648202,-2667.465843,0.0004,14]
[331373409,1720296648211,-2667.465843,0.0004,14]
[331373410,1720296648221,-2846.730087,0.0004,14]
[331373411,1720296648230,-2667.465843,0.0004,14]
[331373412,1720296648239,-2846.730087,0.0004,14]
[331373413,1720296648248,-2846.730087,0.0004,14]
[331373414,1720296648257,-151.0,0.0004,14]
[331373415,1720296648266,-2667.465843,0.0004,14]
[331373416,1720296648276,-151.0,0.0004,14]
[331373417,1720296648286,-1685.147479,0.0004,14]
[331373418,1720296648296,-2667.465843,0.0004,14]
[331373419,1720296648305,-151.0,0.0004,14]
[331373420,1720296648314,-2846.730087,0.0004,14]
[331373421,1720296648324,-1685.147479,0.0004,14]
[331373422,1720296648334,-2667.46584142,0.0004,14]
[331373423,1720296648343,-171.195293,0.0004,14]
[331373424,1720296648352,-2846.730087,0.0004,14]
[331373425,1720296648362,-1685.147479,0.0004,14]
[331373426,1720296648371,-2846.730088,0.0004,14]
[331373427,1720296648380,-1685.147479,0.0004,14]
[331373428,1720296648389,-1685.147479,0.0004,14]
[331373429,1720296648399,-1685.147479,0.0004,14]
[331373430,1720296648409,-1685.147479,0.0004,14]
[331373431,1720296648418,-1685.147479,0.0004,14]
[331373432,1720296648428,-151.0,0.00040122,15]
[331373433,1720296648437,-152.0,0.00040222,2]
[331373434,1720296648446,-3137.77932824,0.00040229,2]
[331373435,1720296648455,-2132.45671248,0.00040278,4]
[331373436,1720296648464,-703.52858176,0.00040278,4]
[331373437,1720296648473,-211.455,0.00040404,2]
[331373438,1720296648482,-235.629,0.00040404,2]
[331373439,1720296648492,-241.754,0.00040404,2]
[331373440,1720296648501,-150.0,0.00040404,2]
[331373441,1720296648511,-252.7629673,0.00040548,2]
[331373442,1720296648520,-306.0,0.00040548,2]
[331373443,1720296648529,-153.0,0.00040548,2]
[331373444,1720296648539,-153.0,0.00040548,2]
[331373445,1720296648549,-153.0,0.00040548,2]
[331373446,1720296648558,-153.0,0.00040548,2]
[331373447,1720296648568,-153.0,0.00040548,2]
[331373448,1720296648577,-153.0,0.00040548,2]
[331373449,1720296648587,-153.0,0.00040548,2]
[331373450,1720296648596,-153.0,0.00040548,2]
[331373451,1720296648605,-153.0,0.00040548,2]
[331373452,1720296648615,-153.0,0.00040548,2]
[331373453,1720296648625,-153.0,0.00040548,2]
[331373454,1720296648635,-153.0,0.00040548,2]
[331373455,1720296648644,-151.0,0.00040548,14]
[331373456,1720296648654,-155.05129,0.00040548,14]
[331373457,1720296648663,-155.05129,0.00040548,14]
[331373458,1720296648674,-151.0,0.00040548,14]
[331373459,1720296648683,-151.0,0.00040548,14]
[331373460,1720296648691,-151.0,0.00040548,14]
[331373461,1720296648701,-151.0,0.00040548,14]
[331373462,1720296648711,-151.0,0.00040548,14]
[331373463,1720296648721,-151.0,0.00040548,14]
[331373464,1720296648731,-508.207924,0.00040548,2]
[331373465,1720296648739,-508.207924,0.00040548,2]
[331373466,1720296648749,-151.0,0.00040548,14]
[331373467,1720296648758,-273.506535,0.00040548,14]
[331373468,1720296648768,-835.694396,0.00040548,14]
[331373469,1720296648779,-835.694396,0.00040548,14]
[331373470,1720296648788,-835.694396,0.00040548,14]
[331373471,1720296648798,-835.694396,0.00040548,14]
[331373472,1720296648807,-151.0,0.00040548,14]
[331373473,1720296648816,-151.0,0.00040548,14]
[331373474,1720296648826,-1007.995024,0.00040548,14]
[331373475,1720296648835,-1007.995024,0.00040548,14]
[331373476,1720296648845,-1007.995024,0.00040548,14]
[331373477,1720296648855,-1007.995024,0.00040548,14]
[331373478,1720296648867,-151.0,0.00040548,14]
[331373479,1720296648876,-151.0,0.00040548,14]
[331373480,1720296648885,-151.0,0.00040548,14]
[331373481,1720296648895,-151.0,0.00040548,14]
[331373482,1720296648904,-241.792987,0.00040548,14]
[331373483,1720296648914,-151.0,0.00040548,14]
[331373484,1720296648923,-241.792984,0.00040548,14]
[331373485,1720296648933,-963.925426,0.00040548,14]
[331373486,1720296648944,-963.925436,0.00040548,14]
[331373487,1720296648954,-204.154198,0.00040569,14]
[331373488,1720296648966,-151.0,0.00040579,14]
[331373489,1720296648976,-155.05129,0.00040579,14]
[331373490,1720296648985,-155.05129,0.00040579,14]
[331373491,1720296648994,-151.0,0.00040579,14]
[331373492,1720296649004,-280.21884,0.00040579,14]
[331373493,1720296649013,-151.0,0.00040579,14]
[331373494,1720296649022,-151.0,0.00040579,14]
[331373495,1720296649032,-151.0,0.00040579,14]
[331373496,1720296649042,-151.0,0.00040579,14]
[331373497,1720296649051,-151.0,0.00040579,14]
[331373498,1720296649061,-508.207924,0.00040579,2]
[331373499,1720296649070,-508.207924,0.00040579,2]
[331373500,1720296649079,-835.694396,0.00040579,14]
[331373501,1720296649089,-835.694396,0.00040579,14]
[331373502,1720296649098,-835.694396,0.00040579,14]
[331373503,1720296649107,-835.694396,0.00040579,14]
[331373504,1720296649116,-151.0,0.00040579,14]
[331373505,1720296649126,-151.0,0.00040579,14]
[331373506,1720296649135,-1007.995024,0.00040579,14]
[331373507,1720296649144,-1007.995024,0.00040579,14]
[331373508,1720296649153,-1007.995024,0.00040579,14]
[331373509,1720296649163,-1007.995024,0.00040579,14]
[331373510,1720296649172,-151.0,0.00040579,14]
[331373511,1720296649181,-151.0,0.00040579,14]
[331373512,1720296649190,-9045.1352569,0.00040599,20]
[331373513,1720296649200,-151.0,0.00040599,14]
[331373514,1720296649209,-155.05129,0.00040599,14]
[331373515,1720296649218,-155.05129,0.00040599,14]
[331373516,1720296649227,-151.0,0.00040599,14]
[331373517,1720296649236,-151.0,0.00040599,14]
[331373518,1720296649246,-151.0,0.00040599,14]
[331373519,1720296649255,-151.0,0.00040599,14]
[331373520,1720296649264,-151.0,0.00040599,14]
[331373521,1720296649273,-151.0,0.00040599,14]
[331373522,1720296649283,-165.278281,0.00040599,14]
[331373523,1720296649293,-508.207924,0.00040599,2]
[331373524,1720296649302,-508.207924,0.00040599,2]
[331373525,1720296649312,-508.207924,0.00040599,2]
[331373526,1720296649322,-508.207924,0.00040599,2]
[331373527,1720296649331,-835.694396,0.00040599,14]
[331373528,1720296649341,-835.694396,0.00040599,14]
[331373529,1720296649350,-151.0,0.00040599,14]
[331373530,1720296649360,-1007.995024,0.00040599,14]
[331373531,1720296649370,-1007.995024,0.00040599,14]
[331373532,1720296649379,-151.0,0.00040599,14]
[331373533,1720296649389,-402.64531294,0.00040807,4]
[331373534,1720296649399,-164.85188126,0.00040999,4]
[331373535,1720296649408,-401.37235246,0.00040999,4]
[331373536,1720296649417,-306.0,0.00041041,2]
[331373537,1720296649427,-2420.55776569,0.00041095,4]
[331373538,1720296649436,-514.93493888,0.00041095,4]
[331373539,1720296649445,-1359.52559773,0.00041095,4]
[331373540,1720296649455,-1634.59229075,0.00041095,4]
[331373541,1720296649464,-1513.35623461,0.00041095,4]
[331373542,1720296649474,-1463.29635585,0.00041095,4]
[331373543,1720296649483,-440.25710499,0.00041096,60]
[331373544,1720296649492,-835.694396,0.000411,14]
[331373545,1720296649502,-835.694391,0.000411,14]
[331373546,1720296649511,-151.0,0.000411,14]
[331373547,1720296649522,-1007.995024,0.000411,14]
[331373548,1720296649531,-1007.995032,0.000411,14]
[331373549,1720296649542,-151.0,0.000411,14]
[331373550,1720296649551,-160.0,0.00041197,3]
[331373551,1720296649562,-155.0,0.0004127,42]
[331373552,1720296649571,-2126.43441341,0.00041314,4]
[331373553,1720296649580,-155.29165972,0.00041314,4]
[331373554,1720296649590,-151.0,0.00041332,14]
[331373555,1720296649599,-155.05129,0.00041332,14]
[331373556,1720296649608,-155.05129,0.00041332,14]
[331373557,1720296649617,-162.034048,0.00041332,14]
[331373558,1720296649627,-151.0,0.00041332,14]
[331373559,1720296649636,-151.0,0.00041332,14]
[331373560,1720296649646,-151.0,0.00041332,14]
[331373561,1720296649655,-508.207924,0.00041332,2]
[331373562,1720296649665,-508.207927,0.00041332,2]
[331373563,1720296649674,-1595.24,0.00041359,10]
[331373564,1720296649684,-153.0,0.0004137,2]
[331373565,1720296649693,-153.0,0.0004137,2]
[331373566,1720296649703,-153.0,0.0004137,2]
[331373567,1720296649714,-153.0,0.0004137,2]
[331373568,1720296649723,-153.0,0.0004137,2]
[331373569,1720296649733,-153.0,0.0004137,2]
[331373570,1720296649742,-153.0,0.0004137,2]
[331373571,1720296649752,-153.0,0.0004137,2]
[331373572,1720296649761,-153.0,0.0004137,2]
[331373573,1720296649772,-153.0,0.0004137,2]
[331373574,1720296649783,-153.0,0.0004137,2]
[331373575,1720296649792,-412.362969,0.0004137,2]
[331373576,1720296649901,-153.0,0.0004137,2]
[331373577,1720296649923,-153.0,0.0004137,2]
[331373578,1720296649934,-153.0,0.0004137,2]
[331373579,1720296649943,-153.0,0.0004137,2]
[331373580,1720296649953,-153.0,0.0004137,2]
[331373581,1720296649963,-878.0,0.00041457,2]
[331373582,1720296649974,-151.0,0.00041562,120]
[331373583,1720296649984,-151.79411363,0.00041588,60]
[331373584,1720296649994,-151.0,0.00041589,14]
[331373585,1720296650004,-155.05129,0.00041589,14]
[331373586,1720296650014,-155.05129,0.00041589,14]
[331373587,1720296650023,-1039.06688618,0.00041589,2]
[331373588,1720296650033,-245.71417189,0.00041589,4]
[331373589,1720296650043,-586.14034038,0.00041589,2]
[331373590,1720296650052,-318.0694556,0.00041589,4]
[331373591,1720296650061,-1434.44237247,0.00041589,4]
[331373592,1720296650072,-151.0,0.00041712,31]
[331373593,1720296650084,-151.0,0.00041753,14]
[331373594,1720296650094,-155.05129,0.00041753,14]
[331373595,1720296650103,-155.05129,0.00041753,14]
[331373596,1720296650113,-196.16735,0.00041763,14]
[331373597,1720296650124,-155.05129,0.00041763,14]
[331373598,1720296650134,-155.051286,0.00041763,14]
[331373599,1720296650144,-4850.08334606,0.00041917,120]
[331373600,1720296650154,-153.0,0.00041918,2]
[331373601,1720296650164,-153.0,0.00041918,2]
[331373602,1720296650176,-153.0,0.00041918,2]
[331373603,1720296650185,-808.0087546,0.00041999,4]
[331373604,1720296650195,-790.79551416,0.00041999,4]
[331373605,1720296650204,-565.87232206,0.00041999,4]
[331373606,1720296650215,-937.8,0.00041999,4]
[331373607,1720296650224,-10213.54,0.00042,30]
[331373608,1720296650233,-200.32421531,0.00042024,4]
[331373609,1720296650243,-153.0,0.00042164,2]
[331373610,1720296650252,-153.0,0.00042164,2]
[331373611,1720296650262,-153.0,0.00042164,2]
[331373612,1720296650271,-153.0,0.00042164,2]
[331373613,1720296650282,-153.0,0.00042192,2]
[331373614,1720296650293,-153.0,0.00042192,2]
[331373615,1720296650303,-153.0,0.00042192,2]
[331373616,1720296650314,-153.0,0.00042192,2]
[331373617,1720296650324,-153.0,0.00042192,2]
[331373618,1720296650334,-153.0,0.00042192,2]
[331373619,1720296650344,-153.0,0.00042192,2]
[331373620,1720296650354,-306.0,0.00042192,2]
[331373621,1720296650364,-12020.66693175,0.000422,120]
[331373622,1720296650375,-160.0,0.0004222,4]
[331373623,1720296650384,-159.39604936,0.00042229,4]
[331373624,1720296650394,-2424.22207094,0.00042247,28]
[331373625,1720296650403,-151.0,0.00042274,120]
[331373626,1720296650414,-175.1,0.00042347,31]
[331373627,1720296650423,-152.0,0.00042347,31]
[331373628,1720296650433,-195.31716393,0.00042398,4]
[331373629,1720296650443,-528.63416526,0.00042398,4]
[331373630,1720296650452,-565.7746747,0.00042398,4]
[331373631,1720296650462,-352.12250544,0.00042398,4]
[331373632,1720296650471,-9633.26433207,0.00042415,31]
[331373633,1720296650481,-10607.59,0.00042465,120]
[331373634,1720296650491,-175.1,0.00042485,31]
[331373635,1720296650501,-152.0,0.00042485,31]
[331373636,1720296650511,-2500.0,0.000425,120]
[331373637,1720296650520,-175.1,0.00042624,31]
[331373638,1720296650529,-152.0,0.00042624,31]
[331373639,1720296650539,-1595.24,0.00042729,10]
[331373640,1720296650548,-175.1,0.00042762,31]
[331373641,1720296650557,-152.0,0.00042762,31]
[331373642,1720296650566,-4106.43,0.00042799,120]
[331373643,1720296650576,-500.0,0.00042835,120]
[331373644,1720296650585,-500.0,0.00042835,120]
[331373645,1720296650594,-500.0,0.00042835,120]
[331373646,1720296650603,-500.0,0.00042835,120]
[331373647,1720296650614,-500.0,0.00042835,120]
[331373648,1720296650624,-500.0,0.00042835,120]
[331373649,1720296650634,-500.0,0.00042835,120]
[331373650,1720296650644,-500.0,0.00042835,120]
[331373651,1720296650653,-500.0,0.00042835,120]
[331373652,1720296650663,-500.0,0.00042835,120]
[331373653,1720296650673,-500.0,0.00042835,120]
[331373654,1720296650683,-500.0,0.00042835,120]
[331373655,1720296650694,-500.0,0.00042835,120]
[331373656,1720296650704,-500.0,0.00042835,120]
[331373657,1720296650713,-500.0,0.00042835,120]
[331373658,1720296650723,-500.0,0.00042835,120]
[331373659,1720296650732,-500.0,0.00042835,120]
[331373660,1720296650742,-500.0,0.00042835,120]
[331373661,1720296650752,-500.0,0.00042835,120]
[331373662,1720296650762,-500.0,0.00042835,120]
[331373663,1720296650772,-500.0,0.00042835,120]
[331373664,1720296650782,-500.0,0.00042835,120]
[331373665,1720296650791,-500.0,0.00042835,120]
[331373666,1720296650800,-500.0,0.00042835,120]
[331373667,1720296650809,-500.0,0.00042835,120]
[331373668,1720296650820,-500.0,0.00042835,120]
[331373669,1720296650830,-500.0,0.00042835,120]